bitfinex/quotes_ETHUSD_20250626
["timestamp","ask_amount","ask_price","bid_price","bid_amount"]
[1750945987384,1.0805,2428.7,2427.8,4.82375794]
[1750945987686,1.0805,2428.7,2427.8,0.70493562]
[1750945987973,1.0805,2428.7,2427.7,6.27412036]
[1750945988175,1.0805,2428.7,2427.7,2.155]
[1750945988372,0.97361762,2428.6,2427.8,4.11885022]
[1750945988573,0.97361762,2428.5,2427.6,4.89435015]
[1750945988790,0.97361762,2428.6,2427.7,4.11903482]
[1750945988992,0.97361762,2428.5,2427.7,7.17538383]
[1750945989149,0.97361762,2428.5,2427.7,7.17541688]
[1750945989350,0.97361762,2428.5,2427.8,4.11886287]
[1750945989682,0.97361762,2428.5,2427.3,10.6962]
[1750945989683,0.8067,2428.5,2427.3,10.6962]
[1750945989890,0.97361762,2428.4,2427.3,0.8142]
[1750945990187,0.8067,2428.2,2427.1,2.155]
[1750945990484,0.86035404,2428.1,2427.2,0.2155]
[1750945990891,0.86035404,2428.1,2427.3,4.11980389]
[1750945991050,0.8067,2428.2,2427.3,4.11980389]
[1750945991245,0.8067,2428.2,2427.4,4.1194894]
[1750945991555,0.8067,2428.2,2427.5,4.11941765]
[1750945991772,0.8067,2428.2,2427.6,4.11921092]
[1750945991979,0.8067,2428.2,2427.3,0.8041]
[1750945992275,2.9438,2428.5,2427.8,4.1189432]
[1750945992481,3.34623,2428.5,2427.7,4.11903557]
[1750945992682,0.776,2428.4,2427.3,0.8041]
[1750945992882,4.89422741,2428.3,2427.3,10.0]
[1750945993044,4.11822741,2428.3,2427.2,2.3705]
[1750945993240,0.776,2428.1,2427.2,0.2155]
[1750945993463,0.776,2428.1,2427.4,4.1195363]
[1750945993671,0.776,2428.1,2427.2,0.2155]
[1750945993857,0.817,2427.8,2426.6,2.987]
[1750945994052,0.817,2427.5,2426.6,4.12084829]
[1750945994275,0.2056,2427.1,2426.6,4.32650573]
[1750945994649,0.2056,2427.1,2426.6,0.2056]
[1750945995075,0.7684,2427.0,2426.4,4.12124101]
[1750945995279,0.2056,2426.9,2426.5,1.6058241]
[1750945995470,0.2056,2426.9,2426.5,5.7269755]
[1750945996071,0.2056,2426.9,2426.5,5.72687451]
[1750945996268,0.7684,2427.0,2426.6,4.12098402]
[1750945996450,0.7684,2427.0,2426.5,5.52131936]
[1750945996645,0.7684,2427.0,2426.6,4.12096557]
[1750945996979,0.7684,2427.0,2426.6,0.9642491]
[1750945997175,13.7860186,2427.9,2426.6,0.9642491]
[1750945997176,0.7699,2427.3,2426.8,4.12062413]
[1750945997353,0.7699,2427.3,2426.7,4.12073375]
[1750945997551,0.7699,2427.3,2426.2,2.987]
[1750945997947,0.7699,2427.3,2426.4,4.1213224]
[1750945998153,0.7699,2427.3,2426.3,4.12145268]
[1750945998555,0.8132,2427.2,2426.1,4.12170699]
[1750945998749,0.8132,2427.2,2426.1,0.4880907]
[1750945998750,1.30650727,2427.1,2426.1,0.4880907]
[1750945998951,2.155,2427.0,2426.1,4.60990673]
[1750945999177,1.30650727,2427.1,2426.2,4.12167175]
[1750945999349,0.8132,2427.1,2426.2,4.12167175]
[1750945999684,0.8132,2427.1,2426.6,4.12098933]
[1750945999866,0.8132,2427.1,2426.5,4.12108911]
[1750946000175,0.8132,2427.1,2426.1,0.4880907]
[1750946000377,0.8132,2427.1,2426.5,4.12111362]
[1750946000580,0.8132,2427.1,2426.2,4.12167175]
[1750946000765,0.8132,2427.1,2426.4,0.8067]
[1750946001090,0.8132,2427.1,2426.6,4.12085505]
[1750946001272,0.8132,2427.1,2426.4,4.92790408]
[1750946001273,0.8132,2427.1,2426.7,4.12081982]
[1750946001670,0.8132,2427.1,2426.6,4.12091285]
[1750946001885,0.8132,2427.1,2426.5,4.12109858]
[1750946002078,0.8132,2427.1,2426.1,1.2606907]
[1750946002251,0.8132,2427.1,2426.3,4.12141894]
[1750946002584,0.8132,2427.1,2425.8,0.8255]
[1750946002785,1.84342,2427.0,2426.1,4.12176469]
[1750946002993,0.806,2426.8,2425.8,0.8255]
[1750946003407,0.806,2426.8,2425.6,2.156]
[1750946003693,0.806,2426.8,2425.0,4.12359093]
[1750946003694,0.8007,2426.1,2425.0,4.12359093]
[1750946003989,0.8007,2426.1,2425.0,1.20559197]
[1750946003990,1.4922374,2426.0,2425.0,1.20559197]
[1750946004193,0.8007,2426.1,2425.3,4.12308317]
[1750946004359,0.8007,2426.1,2424.9,13.203]
[1750946004360,10.3227,2426.1,2425.2,4.12327289]
[1750946004554,9.522,2426.1,2425.0,4.1235573]
[1750946004777,0.8331,2426.0,2424.8,2.9646]
[1750946004965,10.42136541,2425.9,2424.5,0.8124]
[1750946005272,0.7542,2425.4,2424.4,4.12460729]
[1750946005563,0.8281,2425.2,2424.0,4.12538132]
[1750946005870,0.8281,2425.2,2424.1,10.0]
[1750946006072,0.8281,2425.2,2424.4,4.12470933]
[1750946006279,0.2056,2424.9,2424.4,0.2056]
[1750946006478,0.2056,2424.9,2423.9,6.28156585]
[1750946006479,0.7796,2425.5,2424.6,7.982239]
[1750946006673,0.7796,2425.5,2425.2,4.32888391]
[1750946006882,0.7796,2425.5,2425.0,4.12360995]
[1750946007088,0.9852,2425.5,2425.0,0.2056]
[1750946007403,1.0079,2425.8,2425.4,4.12286151]
[1750946007608,1.0079,2425.8,2425.3,0.2056]
[1750946007771,1.08132,2427.0,2425.7,0.7798]
[1750946007772,1.77883274,2426.6,2425.7,0.7798]
[1750946007960,0.2056,2426.4,2426.1,4.12175641]
[1750946008161,0.8112,2426.6,2425.9,4.12206363]
[1750946008386,0.2056,2426.5,2426.0,4.32760673]
[1750946008568,0.8112,2426.6,2425.5,10.0]
[1750946008771,0.2056,2426.2,2425.8,4.12220556]
[1750946008978,0.2056,2426.2,2425.7,0.2056]
[1750946009272,0.2056,2426.0,2425.7,4.12248159]
[1750946009593,0.761,2426.5,2425.8,4.12235138]
[1750946009891,0.9666,2426.5,2426.0,4.12197652]
[1750946010072,0.9666,2426.5,2426.1,4.12183394]
[1750946010391,0.761,2426.5,2425.9,5.53439504]
[1750946010601,0.9666,2426.5,2426.1,4.12174802]
[1750946010773,0.761,2426.5,2425.4,10.7798]
[1750946010974,0.2056,2426.7,2426.2,0.2056]
[1750946011161,0.2056,2426.7,2426.2,4.32719298]
[1750946011596,0.2056,2426.7,2426.2,0.2056]
[1750946011796,0.2056,2426.7,2426.3,4.12136297]
[1750946011963,0.2056,2426.7,2426.2,4.32720101]
[1750946012490,0.2056,2426.7,2426.2,4.32725405]
[1750946012692,0.774,2426.8,2426.5,4.12106421]
[1750946013063,0.774,2426.8,2426.4,4.32686046]
[1750946013264,0.774,2426.8,2426.4,0.2056]
[1750946013465,0.774,2426.8,2426.4,4.32692133]
[1750946013659,0.774,2426.8,2426.4,4.3268535]
[1750946013910,0.774,2426.8,2426.4,0.2056]
[1750946014081,0.774,2426.8,2426.4,5.17172204]
[1750946014483,0.774,2426.8,2426.4,5.17172408]
[1750946014884,0.8199,2427.1,2426.6,4.12097118]
[1750946015172,0.8199,2427.1,2426.6,0.2056]
[1750946015173,1.0255,2427.1,2426.6,0.2056]
[1750946015505,0.2056,2427.3,2426.8,4.32616273]
[1750946015801,0.2056,2427.3,2426.8,0.2056]
[1750946016002,0.2056,2427.3,2426.9,4.12048292]
[1750946016173,0.2056,2427.3,2426.8,0.2056]
[1750946016375,1.82361713,2428.2,2426.9,10.8271]
[1750946016594,0.2056,2428.2,2428.1,4.1183505]
[1750946016795,0.8322,2428.6,2427.4,4.11963417]
[1750946016796,0.2056,2428.4,2427.9,0.2056]
[1750946016981,0.2056,2428.7,2428.1,4.11844652]
[1750946017317,0.2056,2429.0,2428.6,0.2056]
[1750946017503,0.2056,2429.0,2428.7,4.11742907]
[1750946017683,4.98542513,2429.7,2428.7,7.00271]
[1750946017890,1.6791699,2429.6,2428.4,0.8052]
[1750946018096,0.2056,2429.2,2428.7,4.32293208]
[1750946018273,0.2056,2429.2,2428.7,4.32299462]
[1750946018477,0.2056,2429.2,2428.8,4.11715198]
[1750946018713,0.791,2429.7,2428.7,4.11740714]
[1750946019004,0.2056,2429.5,2429.1,0.2056]
[1750946019213,0.791,2429.7,2428.9,4.11703644]
[1750946019394,0.9966,2429.7,2429.2,0.2056]
[1750946020187,0.2056,2429.2,2428.6,10.0]
[1750946020390,17.02806611,2429.6,2428.8,4.11716947]
[1750946020391,0.791,2429.6,2428.8,4.11716947]
[1750946020599,0.2056,2429.3,2428.9,4.11706159]
[1750946020908,0.9966,2429.6,2429.1,0.2056]
[1750946021478,0.791,2429.6,2429.4,0.2056]
[1750946021900,0.2056,2429.8,2429.4,0.2056]
[1750946022705,0.791,2430.0,2428.7,12.9262]
[1750946022917,0.2056,2429.7,2429.2,0.2056]
[1750946023493,0.791,2430.0,2429.3,4.11632396]
[1750946023798,0.9966,2430.0,2429.5,0.2056]
[1750946024200,0.9966,2430.0,2429.6,4.11587962]
[1750946024528,0.791,2430.0,2429.7,0.2056]
[1750946024894,0.2056,2430.2,2429.7,4.32121137]
[1750946025225,0.2056,2430.2,2429.7,0.2056]
[1750946026295,0.2056,2430.2,2429.7,4.32129251]
[1750946026493,0.791,2430.4,2429.7,0.83835704]
[1750946026705,0.9966,2430.4,2430.0,4.32082624]
[1750946026892,0.791,2430.4,2429.7,0.63275704]
[1750946027114,0.791,2429.9,2429.3,4.11640823]
[1750946027316,0.2056,2429.8,2429.3,0.2056]
[1750946027911,0.791,2429.9,2428.8,1.80643079]
[1750946028123,0.2056,2429.3,2428.9,0.2056]
[1750946028315,0.7967,2429.2,2428.9,0.2056]
[1750946028713,0.7967,2429.2,2427.8,0.7578]
[1750946028915,0.2056,2429.1,2428.6,0.2056]
[1750946029117,0.7967,2429.2,2428.5,4.1177189]
[1750946029317,0.7967,2429.2,2428.8,4.32275525]
[1750946029518,0.7967,2429.2,2428.8,0.2056]
[1750946029719,0.7967,2429.2,2428.7,0.2056]
[1750946029720,0.2056,2429.1,2428.7,0.2056]
[1750946029906,0.2056,2429.0,2428.5,2.3246]
[1750946030234,0.7656,2428.7,2428.3,0.2056]
[1750946030436,0.7656,2428.7,2428.3,0.43806]
[1750946030943,0.7656,2429.0,2428.3,0.23246]
[1750946031238,0.9712,2429.0,2428.5,4.32334575]
[1750946031534,0.9712,2429.0,2428.5,0.2056]
[1750946032112,0.9712,2429.0,2428.5,4.32322695]
[1750946032335,0.9712,2429.0,2428.6,0.4323227]
[1750946032528,0.9712,2429.0,2428.5,4.32331614]
[1750946032705,0.7656,2429.0,2428.6,4.11750108]
[1750946033036,0.7656,2429.0,2428.5,4.11769132]
[1750946033341,0.9712,2429.0,2428.6,0.2056]
[1750946034246,0.9712,2429.0,2428.7,4.11740351]
[1750946034616,0.7896,2429.5,2428.7,4.11740351]
[1750946034940,0.2056,2429.2,2428.8,4.32285179]
[1750946035242,0.2056,2429.2,2428.8,0.2056]
[1750946036036,0.2056,2428.9,2428.5,0.2056]
[1750946037245,0.2056,2428.9,2428.5,4.3233481]
[1750946037428,0.2056,2428.9,2428.5,0.2056]
[1750946037627,0.7967,2429.1,2428.6,4.11750851]
[1750946037832,0.7967,2429.1,2428.5,0.8673992]
[1750946038011,0.2056,2429.0,2428.5,0.2056]
[1750946039240,0.2056,2429.0,2428.5,4.32335672]
[1750946039443,0.2056,2429.0,2428.5,0.2056]
[1750946040156,0.7967,2429.1,2428.5,0.2056]
[1750946040157,1.0023,2429.1,2428.7,0.2056]
[1750946040463,0.8189,2429.4,2428.5,4.94086816]
[1750946040638,0.2056,2429.3,2428.8,0.2056]
[1750946040812,1.0245,2429.4,2429.1,4.11658232]
[1750946041017,0.7812,2429.7,2428.8,4.11711728]
[1750946041246,0.7812,2429.7,2428.6,0.49408682]
[1750946041548,0.7812,2429.7,2429.2,4.11655163]
[1750946041866,0.2056,2429.5,2429.1,0.2056]
[1750946042067,0.7752,2429.4,2429.1,0.2056]
[1750946042218,0.2056,2429.1,2428.7,0.2056]
[1750946042949,0.2056,2429.1,2428.3,10.23246]
[1750946042950,0.2056,2428.8,2428.3,0.43806]
[1750946043451,0.2056,2428.8,2428.3,4.55614848]
[1750946043661,0.2056,2428.8,2428.5,4.11776816]
[1750946043977,0.7729,2429.3,2428.7,0.2056]
[1750946044134,0.7729,2429.6,2428.6,2.933]
[1750946044332,0.9785,2429.6,2429.2,4.11641691]
[1750946044718,0.9785,2429.6,2429.1,0.2056]
[1750946044921,0.7729,2429.6,2428.6,2.933]
[1750946045236,0.2056,2429.4,2428.9,0.2056]
[1750946045449,0.2056,2429.2,2428.7,0.2056]
[1750946045768,0.2056,2429.2,2428.8,4.11715262]
[1750946045940,0.2056,2429.2,2428.7,0.2056]
[1750946046136,0.7797,2429.1,2428.7,0.2056]
[1750946046350,0.9853,2429.1,2428.6,4.32317433]
[1750946046658,0.9853,2429.1,2428.6,4.54987891]
[1750946046659,0.7797,2429.1,2428.6,4.54987891]
[1750946046869,0.7797,2429.1,2428.8,0.2056]
[1750946047160,0.7797,2429.1,2428.4,4.11788214]
[1750946047347,0.2056,2428.9,2428.5,0.2056]
[1750946049656,0.9873,2429.6,2429.1,4.32227742]
[1750946050173,0.9873,2429.6,2429.2,4.11652047]
[1750946050539,0.9873,2429.6,2429.3,4.11638706]
[1750946050747,0.9873,2429.6,2429.1,4.32227161]
[1750946051073,0.9873,2429.6,2429.3,4.11630542]
[1750946051234,0.9873,2429.6,2429.1,0.63782716]
[1750946051426,0.9873,2429.6,2429.1,0.2056]
[1750946051646,0.9873,2429.6,2429.2,4.11657016]
[1750946051959,0.9873,2429.6,2429.2,4.11658159]
[1750946052535,0.7817,2429.6,2428.9,4.11706714]
[1750946052788,0.7817,2429.6,2429.3,0.2056]
[1750946053142,0.7817,2429.6,2429.3,4.32188534]
[1750946053344,0.2056,2429.7,2429.3,0.2056]
[1750946053548,1.18405985,2429.7,2429.3,0.2056]
[1750946053782,0.2056,2429.7,2429.3,0.2056]
[1750946054187,1.18405985,2429.7,2429.3,4.32192595]
[1750946054374,0.2056,2429.7,2429.3,4.32192595]
[1750946054878,1.18405985,2429.7,2429.3,4.32194476]
[1750946055083,0.2056,2429.7,2429.3,0.2056]
[1750946055258,0.2056,2429.7,2429.4,4.11619969]
[1750946055464,1.18405985,2429.7,2429.4,4.11619969]
[1750946055647,0.2056,2429.7,2429.3,0.2056]
[1750946055850,0.2056,2429.7,2429.4,4.11623269]
[1750946056176,0.2056,2429.7,2428.9,4.88868012]
[1750946056177,0.97845985,2429.9,2429.0,4.11692054]
[1750946056383,0.97845985,2430.0,2429.8,4.11556506]
[1750946056689,0.7617,2430.4,2430.2,4.11488766]
[1750946056690,0.97845985,2430.3,2430.2,4.11488766]
[1750946056848,0.97845985,2430.3,2429.8,0.2056]
[1750946057051,1.18405985,2430.2,2429.8,0.2056]
[1750946057398,0.97845985,2430.1,2429.8,4.32105372]
[1750946057688,0.97845985,2430.1,2430.0,4.32082633]
[1750946057847,0.97845985,2430.3,2430.0,0.2056]
[1750946058048,0.97845985,2430.2,2430.0,0.2056]
[1750946058354,0.7617,2430.4,2429.6,0.8243]
[1750946058355,0.97873491,2430.1,2429.6,4.11589215]
[1750946058555,0.97873491,2430.3,2429.7,4.11561464]
[1750946058771,0.97873491,2430.2,2429.4,4.92004269]
[1750946059057,0.97873491,2430.3,2429.8,4.11542226]
[1750946059266,0.97873491,2430.3,2429.6,4.11587763]
[1750946059492,0.97873491,2430.3,2429.5,20.0]
[1750946059676,0.97873491,2430.3,2429.9,4.11530609]
[1750946059996,0.97873491,2430.3,2429.6,10.0]
[1750946060179,0.97873491,2430.3,2429.7,6.1157146]
[1750946060388,0.97873491,2430.3,2429.8,4.11548152]
[1750946060595,0.97873491,2430.3,2429.7,2.0]
[1750946060793,0.97873491,2430.3,2429.8,4.11554698]
[1750946060992,0.97873491,2430.3,2429.7,2.0]
[1750946061306,0.97873491,2430.3,2429.4,4.92003863]
[1750946061506,1.5642268,2430.3,2429.4,5.62114249]
[1750946061709,1.5642268,2430.3,2429.4,0.70110386]
[1750946061910,1.5642268,2430.3,2429.4,14.81733547]
[1750946062606,0.8099,2430.2,2429.4,10.70110386]
[1750946062968,0.8099,2430.2,2429.5,4.1160647]
[1750946063315,0.8099,2430.2,2429.6,4.11580993]
[1750946063509,0.8099,2430.2,2429.5,6.0093475]
[1750946064167,0.8099,2430.2,2429.8,4.11548607]
[1750946064366,0.8099,2430.2,2429.5,1.89335135]
[1750946064367,0.8099,2430.2,2429.7,4.11564149]
[1750946064608,0.8099,2430.2,2429.5,1.89335135]
[1750946064768,0.8099,2430.2,2429.4,14.81727866]
[1750946064769,0.8099,2430.2,2429.6,1.671063]
[1750946065217,0.8099,2430.2,2429.4,10.70110386]
[1750946065712,0.8099,2430.2,2429.4,0.70110386]
[1750946065917,0.8099,2430.2,2429.4,4.81734376]
[1750946066292,0.8099,2430.2,2429.4,4.81732303]
[1750946066493,0.8099,2430.2,2429.6,4.11581134]
[1750946066681,10.1649,2430.2,2429.5,4.11599205]
[1750946066877,10.1649,2430.2,2429.5,4.1159748]
[1750946067078,11.18139,2430.2,2429.4,4.81727774]
[1750946067508,10.1649,2430.2,2429.4,0.70110386]
[1750946067710,10.1649,2430.2,2429.4,4.8171823]
[1750946067915,10.1649,2430.2,2429.6,4.11587805]
[1750946068130,0.8099,2430.2,2429.4,0.70110386]
[1750946068423,0.8099,2430.2,2429.8,4.32109561]
[1750946068634,12.09898776,2431.2,2430.1,4.1149444]
[1750946068926,0.2056,2430.7,2430.2,4.11476059]
[1750946069079,0.2056,2430.7,2430.1,4.11497393]
[1750946069279,0.2056,2430.7,2430.3,0.2056]
[1750946070075,0.2056,2430.7,2430.3,4.32028886]
[1750946070477,0.2056,2430.7,2430.3,0.2056]
[1750946070881,0.2056,2430.7,2430.3,4.32031426]
[1750946071183,0.2056,2430.7,2430.4,4.1144582]
[1750946071383,0.8202,2431.1,2430.5,4.11430426]
[1750946071613,0.2056,2430.9,2430.6,4.11420352]
[1750946071801,2.9112,2431.1,2430.7,4.11389167]
[1750946071802,8.0572,2431.1,2430.7,4.11389167]
[1750946072110,8.0572,2431.1,2430.7,0.2056]
[1750946072703,8.0572,2431.1,2430.5,4.11436415]
[1750946072889,0.2056,2430.9,2430.5,4.31996415]
[1750946073219,8.0572,2431.1,2430.6,4.11418428]
[1750946073420,1.0258,2431.1,2430.7,4.31963607]
[1750946073721,0.8202,2431.1,2430.8,4.11378467]
[1750946074031,0.8202,2431.1,2430.8,0.2056]
[1750946074213,0.8202,2431.1,2430.8,4.31946112]
[1750946074421,0.8202,2431.1,2430.9,4.11357043]
[1750946074594,0.8202,2431.1,2430.8,1.04896716]
[1750946074801,0.8202,2431.1,2430.8,4.31939434]
[1750946074985,0.8202,2431.1,2430.8,4.31932507]
[1750946075186,0.8202,2431.1,2430.3,10.43203143]
[1750946075187,7.226,2431.3,2431.0,4.11353352]
[1750946075399,10.9066,2431.4,2431.0,0.2056]
[1750946075596,18.1306,2431.4,2431.0,0.2056]
[1750946078027,0.829,2431.7,2431.6,4.1125185]
[1750946078240,0.829,2432.0,2431.7,4.11218149]
[1750946078434,10.829,2432.5,2431.8,4.11204579]
[1750946078593,10.829,2432.5,2431.9,4.11198998]
[1750946078594,7.213,2432.3,2431.9,4.11198998]
[1750946078793,7.211,2432.3,2431.9,4.11198998]
[1750946079103,0.7727,2432.1,2431.2,4.11306753]
[1750946079303,0.7727,2432.1,2431.1,0.7748]
[1750946079502,0.7727,2432.1,2431.4,4.11276896]
[1750946079713,0.7727,2432.1,2431.4,4.11277723]
[1750946079919,0.7727,2432.1,2431.1,4.88812825]
[1750946080105,7.211,2432.0,2431.4,10.0]
[1750946080306,7.211,2432.0,2431.3,4.11302595]
[1750946080624,7.211,2432.0,2431.4,4.11281893]
[1750946081324,7.211,2432.0,2431.1,0.7748]
[1750946081525,0.7835,2431.9,2431.0,4.113454]
[1750946081717,0.7855,2431.8,2430.7,6.94247631]
[1750946081902,0.7855,2431.8,2430.9,10.0]
[1750946082226,0.7855,2431.8,2431.0,4.11342236]
[1750946082428,0.7855,2431.8,2430.9,4.11361473]
[1750946082628,1.664987,2431.8,2430.9,6.21920828]
[1750946082804,0.7794,2431.6,2430.7,0.7915]
[1750946083133,7.201,2431.5,2430.7,10.0]
[1750946083626,7.201,2431.5,2430.7,14.11394256]
[1750946083812,7.201,2431.5,2430.7,10.0]
[1750946084037,0.7679,2431.4,2430.5,4.11434903]
[1750946084230,0.7679,2431.4,2430.4,0.7802]
[1750946084429,4.88080963,2431.4,2430.3,4.5466485]
[1750946084616,4.11288503,2431.4,2430.4,10.0]
[1750946084823,0.7672,2431.2,2430.2,4.11487882]
[1750946085019,1.31023192,2431.2,2430.3,10.48748788]
[1750946085210,7.193,2431.1,2430.3,10.48748788]
[1750946085724,7.193,2431.1,2429.7,0.7973]
[1750946085725,0.8063,2431.0,2429.7,0.7973]
[1750946086105,0.8063,2431.0,2430.1,10.0]
[1750946086320,0.8063,2431.0,2430.1,4.11503533]
[1750946087512,0.8063,2431.0,2429.8,4.11554189]
[1750946087709,0.7667,2430.9,2430.0,4.1151319]
[1750946087938,0.9723,2430.9,2430.5,0.2056]
[1750946088126,0.9723,2430.9,2430.5,4.11431415]
[1750946088127,0.7667,2430.9,2430.5,4.11431415]
[1750946088325,0.7667,2430.9,2430.4,4.11452625]
[1750946088501,0.9723,2430.9,2430.5,0.2056]
[1750946089338,0.9723,2430.9,2430.5,4.3199161]
[1750946089636,0.9723,2430.9,2430.7,4.11391205]
[1750946090437,0.9723,2430.9,2430.8,4.11387197]
[1750946090636,7.197,2431.3,2430.8,4.11387197]
[1750946090814,7.4026,2431.3,2430.8,4.31940549]
[1750946091011,7.4026,2431.3,2430.9,4.11368341]
[1750946091220,7.4026,2431.3,2430.5,0.84343252]
[1750946091530,0.2056,2431.0,2430.8,4.11375636]
[1750946091724,0.2056,2431.2,2430.9,4.11368099]
[1750946092333,0.2056,2431.2,2430.8,4.11381171]
[1750946092538,0.2056,2431.2,2430.7,0.2056]
[1750946092831,0.2056,2431.2,2430.7,4.31962413]
[1750946093340,0.7644,2431.1,2430.2,4.11475148]
[1750946093542,0.2056,2430.7,2430.2,4.32035148]
[1750946094207,0.2056,2430.7,2430.3,4.11471545]
[1750946094719,0.2056,2430.7,2430.4,4.11454843]
[1750946095435,0.2056,2430.7,2430.3,4.11463706]
[1750946095610,0.2056,2430.7,2430.4,4.11454822]
[1750946096450,0.2056,2430.7,2430.3,4.11463263]
[1750946096948,0.2056,2430.7,2430.4,4.11452417]
[1750946097607,0.19484656,2430.7,2430.3,4.11462288]
[1750946097807,0.8291,2430.6,2430.3,0.84350614]
[1750946098011,0.8291,2430.6,2430.2,0.2056]
[1750946098248,0.2056,2430.4,2430.2,4.11485117]
[1750946098411,0.2056,2430.4,2430.0,4.32076146]
[1750946098412,0.2056,2430.4,2430.0,0.2056]
[1750946098741,0.2056,2430.4,2430.1,4.11497059]
[1750946099958,0.8291,2430.6,2430.2,4.11485597]
[1750946100157,1.0347,2430.6,2430.2,4.11485597]
[1750946100453,1.0347,2430.6,2430.1,4.3205712]
[1750946100616,1.0347,2430.6,2430.2,4.11484729]
[1750946100818,0.8291,2430.6,2429.9,4.11531755]
[1750946101015,0.2056,2430.4,2430.0,0.2056]
[1750946101221,0.7755,2430.5,2429.5,4.11607326]
[1750946101436,0.7755,2430.5,2430.2,4.1148325]
[1750946101611,0.7755,2430.5,2429.9,4.11531819]
[1750946101811,0.7755,2430.5,2429.9,4.52685001]
[1750946102257,0.7755,2430.5,2429.7,4.11558231]
[1750946102433,0.7755,2430.5,2429.6,4.11580762]
[1750946102625,0.7755,2430.5,2429.7,4.11570494]
[1750946102821,0.7755,2430.5,2429.4,0.8033]
[1750946103253,0.7755,2430.5,2429.9,4.11530912]
[1750946103545,0.7755,2430.5,2429.9,4.11528422]
[1750946103929,0.7755,2430.5,2430.0,4.11521473]
[1750946104251,0.7755,2430.5,2429.9,4.11530816]
[1750946104747,0.7755,2430.5,2429.8,4.11548806]
[1750946105044,1.77255,2430.5,2429.6,4.11590385]
[1750946105248,1.77255,2430.5,2429.5,4.11607326]
[1750946105413,1.77255,2430.5,2430.0,4.11522106]
[1750946105620,1.77255,2430.5,2430.1,4.11495591]
[1750946105816,1.77255,2430.5,2429.7,4.11571719]
[1750946105817,0.7755,2430.5,2429.7,4.11573292]
[1750946106030,0.7521,2430.9,2430.6,4.11407831]
[1750946106253,0.7521,2430.9,2430.5,4.11435226]
[1750946106450,0.7521,2430.9,2430.0,10.0]
[1750946106753,0.7521,2430.9,2429.6,6.97386396]
[1750946106931,0.7521,2430.7,2430.0,4.11512849]
[1750946107244,0.7521,2430.7,2430.1,4.11504619]
[1750946107445,0.7521,2430.7,2429.8,4.11554046]
[1750946107644,0.7521,2430.7,2429.7,10.6973864]
[1750946107859,0.7521,2430.7,2430.1,4.11505699]
[1750946108030,1.855201,2430.7,2430.1,4.11505699]
[1750946108415,7.9021,2430.7,2430.3,4.11464119]
[1750946108621,0.7521,2430.7,2429.7,14.81301551]
[1750946108859,0.7521,2430.7,2430.1,0.7665]
[1750946109348,0.7521,2430.7,2429.9,4.1152415]
[1750946109751,2.7511,2430.7,2430.0,4.11512323]
[1750946109920,0.7521,2430.7,2430.0,4.93817512]
[1750946110119,0.7521,2430.7,2430.1,4.11493151]
[1750946110625,0.7521,2430.7,2429.8,4.11553298]
[1750946110865,0.7521,2430.7,2429.9,4.11536998]
[1750946111343,0.2056,2430.4,2430.0,0.2056]
[1750946111752,0.7521,2430.7,2429.8,4.11555687]
[1750946111753,0.7546,2430.3,2429.8,4.11555687]
[1750946111934,0.9602,2430.3,2429.8,4.87909673]
[1750946112330,0.9602,2430.3,2429.8,0.76353986]
[1750946112531,0.9602,2430.3,2429.8,0.2056]
[1750946112761,0.2056,2430.0,2429.5,0.2056]
[1750946113259,0.7594,2429.9,2429.5,0.2056]
[1750946114754,0.7594,2429.9,2429.3,4.11639201]
[1750946115057,0.2056,2429.8,2429.3,4.32199201]
[1750946115249,0.2056,2429.8,2429.3,2.31727438]
[1750946115437,0.2056,2429.8,2429.3,6.43367181]
[1750946115779,0.2056,2429.8,2429.3,6.43365717]
[1750946115935,0.7594,2429.9,2429.4,4.11609832]
[1750946116138,0.7594,2429.9,2429.6,0.2056]
[1750946116345,0.7594,2429.9,2429.6,4.11588479]
[1750946116565,0.7594,2429.9,2429.6,4.54803327]
[1750946116861,0.7594,2429.9,2429.7,0.2056]
[1750946119856,8.1591,2430.1,2429.7,4.32123814]
[1750946120326,1.0091,2430.1,2429.7,0.2056]
[1750946120528,1.0091,2430.1,2429.6,0.8182]
[1750946120529,0.2056,2430.3,2430.0,4.11514132]
[1750946120724,0.7569,2430.5,2430.0,4.11514132]
[1750946120725,0.7569,2430.5,2430.1,4.11504004]
[1750946120955,0.7569,2430.5,2430.0,1.04920624]
[1750946121144,0.7569,2430.5,2429.8,4.11547215]
[1750946121339,0.2056,2430.3,2429.8,4.32107215]
[1750946121537,0.2056,2430.3,2429.9,4.11537912]
[1750946121882,0.2056,2430.3,2429.8,0.2056]
[1750946122034,0.7569,2430.5,2429.8,4.11547769]
[1750946122231,0.9625,2430.5,2430.0,0.2056]
[1750946122461,0.9625,2430.5,2429.6,0.8182]
[1750946122462,0.7923,2430.4,2429.0,0.8028]
[1750946122661,0.7923,2430.4,2429.6,40.16069085]
[1750946122832,0.7923,2430.4,2429.7,10.0]
[1750946123035,0.7923,2430.4,2429.7,14.11562878]
[1750946123230,0.7923,2430.4,2429.9,4.11529555]
[1750946123532,0.7923,2430.4,2430.0,4.11521486]
[1750946123740,0.7923,2430.4,2430.1,0.41152149]
[1750946124468,0.7923,2430.4,2429.7,4.11563382]
[1750946124639,0.7923,2430.4,2429.6,16.11486371]
[1750946125340,0.7923,2430.4,2429.6,16.11490193]
[1750946125668,0.7923,2430.4,2429.6,16.11483527]
[1750946126169,0.7923,2430.4,2429.7,4.11559565]
[1750946126365,0.7923,2430.4,2429.8,1.61145957]
[1750946126938,0.8369268,2430.6,2429.8,1.61145957]
[1750946127270,0.0261268,2430.6,2430.5,4.11437975]
[1750946127489,0.0261268,2430.6,2430.4,4.11445792]
[1750946127775,0.0261268,2430.6,2430.5,0.41144579]
[1750946128696,0.0261268,2430.6,2430.3,4.11471834]
[1750946128855,0.0261268,2430.6,2430.2,4.11480238]
[1750946129058,0.0261268,2430.6,2430.0,4.9009594]
[1750946129059,0.0261268,2430.6,2430.3,4.11471246]